fUSD/lending_fUSD_20251011
["ID","MTS","AMOUNT","RATE_DAILY","PERIOD"]
[390897327,1760203316839,-895.73,0.00038356,30]
[390897328,1760203316880,-500.0,0.00038356,30]
[390897329,1760203316932,-500.0,0.00038356,30]
[390897330,1760203316973,-5369.77,0.00038356,30]
[390897331,1760203317014,-2193.13,0.00038356,30]
[390897332,1760203317052,-4680.64,0.00038356,30]
[390897333,1760203317088,-6725.34,0.00038356,30]
[390897334,1760203317122,-500.0,0.00038356,30]
[390897335,1760203317156,-500.0,0.00038356,30]
[390897336,1760203317191,-500.0,0.00038356,30]
[390897337,1760203317224,-1917.81,0.00038356,30]
[390897338,1760203317258,-500.0,0.00038356,30]
[390897339,1760203317293,-5560.28,0.00038356,30]
[390897340,1760203317326,-1916.02,0.00038356,30]
[390897341,1760203317361,-1440.32,0.00038356,30]
[390897342,1760203317396,-500.0,0.00038356,30]
[390897343,1760203317430,-500.0,0.00038356,30]
[390897344,1760203317464,-500.0,0.00038356,30]
[390897345,1760203317498,-840.79,0.00038356,30]
[390897346,1760203317534,-920.19,0.00038356,30]
[390897347,1760203317567,-8063.35,0.00038356,30]
[390897348,1760203317604,-3637.06,0.00038356,30]
[390897349,1760203317857,-819.13,0.00038356,30]
[390897350,1760203317895,-2194.18,0.00038356,30]
[390897351,1760203317934,-574.08,0.00038356,30]
[390897352,1760203317972,-1000.0,0.00038356,30]
[390897353,1760203318009,-2000.0,0.00038356,30]
[390897354,1760203318045,-1509.64,0.00038356,30]
[390897355,1760203318080,-8493.47,0.00038356,30]
[390897356,1760203318115,-500.0,0.00038356,30]
[390897357,1760203318149,-500.0,0.00038356,30]
[390897358,1760203318182,-2250.5,0.00038356,30]
[390897359,1760203318215,-500.0,0.00038356,30]
[390897360,1760203318246,-824.11,0.00038356,30]
[390897361,1760203318281,-500.0,0.00038356,30]
[390897362,1760203318313,-645.96,0.00038356,30]
[390897363,1760203318346,-4265.69,0.00038356,30]
[390897364,1760203318378,-2097.35,0.00038356,30]
[390897365,1760203318410,-500.0,0.00038356,30]
[390897366,1760203318443,-500.0,0.00038356,30]
[390897367,1760203318474,-500.0,0.00038356,30]
[390897368,1760203318506,-1926.06,0.00038356,30]
[390897369,1760203318539,-1218.85,0.00038356,30]
[390897370,1760203318572,-500.0,0.00038356,30]
[390897371,1760203318605,-2257.12,0.00038356,30]
[390897372,1760203318638,-500.0,0.00038356,30]
[390897373,1760203318670,-500.0,0.00038356,30]
[390897374,1760203318703,-4232.31,0.00038356,30]
[390897375,1760203318735,-603.88,0.00038356,30]
[390897376,1760203318771,-4589.56,0.00038356,30]
[390897377,1760203318804,-500.0,0.00038356,30]
[390897378,1760203318837,-500.0,0.00038356,30]
[390897379,1760203318870,-500.0,0.00038356,30]
[390897380,1760203318902,-500.0,0.00038356,30]
[390897381,1760203318935,-4749.45,0.00038356,30]
[390897382,1760203318968,-500.0,0.00038356,30]
[390897383,1760203319002,-5055.78,0.00038356,30]
[390897384,1760203319038,-7179.54,0.00038356,30]
[390897385,1760203319072,-7488.03,0.00038356,30]
[390897386,1760203319109,-500.0,0.00038356,30]
[390897387,1760203319158,-500.0,0.00038356,30]
[390897388,1760203319195,-1260.5,0.00038356,30]
[390897389,1760203319230,-1020.85,0.00038356,30]
[390897390,1760203319265,-500.0,0.00038356,30]
[390897391,1760203319303,-500.0,0.00038356,30]
[390897392,1760203319340,-500.0,0.00038356,30]
[390897393,1760203319374,-847.97,0.00038356,30]
[390897394,1760203319407,-3963.71,0.00038356,30]
[390897395,1760203319440,-4668.38,0.00038356,30]
[390897396,1760203319472,-500.0,0.00038356,30]
[390897397,1760203319504,-3724.72,0.00038356,30]
[390897398,1760203319537,-500.0,0.00038356,30]
[390897399,1760203319568,-1740.91,0.00038356,30]
[390897400,1760203319600,-1419.6,0.00038356,30]
[390897401,1760203319633,-500.0,0.00038356,30]
[390897402,1760203319666,-2643.88,0.00038356,30]
[390897403,1760203319703,-500.0,0.00038356,30]
[390897404,1760203319739,-767.54,0.00038356,30]
[390897405,1760203319773,-500.0,0.00038356,30]
[390897406,1760203319805,-500.0,0.00038356,30]
[390897407,1760203319836,-500.0,0.00038356,30]
[390897408,1760203319871,-500.0,0.00038356,30]
[390897409,1760203319906,-500.0,0.00038356,30]
[390897410,1760203319939,-500.0,0.00038356,30]
[390897411,1760203319974,-500.0,0.00038356,30]
[390897412,1760203320015,-500.0,0.00038356,30]
[390897413,1760203320058,-500.0,0.00038356,30]
[390897414,1760203320100,-172.42647591,0.00038356,30]
[390897415,1760203320140,-961.33,0.00038356,30]
[390897416,1760203320181,-1071.38,0.00038356,30]
[390897417,1760203320216,-3756.69,0.00038356,30]
[390897418,1760203320254,-500.0,0.00038356,30]
[390897419,1760203320302,-500.0,0.00038356,30]
[390897420,1760203320339,-3201.04,0.00038356,30]
[390897421,1760203320384,-4580.97,0.00038356,30]
[390897422,1760203320418,-4048.49,0.00038356,30]
[390897423,1760203320453,-500.0,0.00038356,30]
[390897424,1760203320485,-500.0,0.00038356,30]
[390897425,1760203320518,-500.58041421,0.00038356,30]
[390897426,1760203320552,-3026.63,0.00038356,30]
[390897427,1760203320584,-500.0,0.00038356,30]
[390897428,1760203320618,-18548.07,0.00038356,30]
[390897429,1760203320650,-1160.54,0.00038356,30]
[390897430,1760203320681,-500.0,0.00038356,30]
[390897431,1760203320714,-500.0,0.00038356,30]
[390897432,1760203320747,-2276.67,0.00038356,30]
[390897433,1760203320779,-6799.72,0.00038356,30]
[390897434,1760203320812,-150.0,0.00038385,120]
[390897435,1760203320845,-173.0,0.000384,120]
[390897436,1760203320881,-1338.08587,0.00038488,30]
[390897437,1760203320916,-30000.0,0.000385,120]
[390897438,1760203321346,-728.50219951,0.000385,120]
[390897439,1760203321400,-2031.484,0.00038525,52]
[390897440,1760203321438,-500.0,0.0003863,30]
[390897441,1760203321475,-1698.26,0.0003863,30]
[390897442,1760203321511,-733.75,0.0003863,30]
[390897443,1760203321550,-500.0,0.0003863,30]
[390897444,1760203321587,-377.29516247,0.0003863,30]
[390897445,1760203321625,-723.26,0.0003863,30]
[390897446,1760203321662,-1099.68,0.0003863,30]
[390897447,1760203321700,-500.0,0.0003863,30]
[390897448,1760203321739,-500.0,0.0003863,30]
[390897449,1760203321778,-643.08,0.0003863,30]
[390897450,1760203321817,-500.0,0.0003863,30]
[390897451,1760203321855,-500.0,0.0003863,30]
[390897452,1760203321896,-689.29,0.0003863,30]
[390897453,1760203321938,-1067.28,0.0003863,30]
[390897454,1760203321981,-500.0,0.0003863,30]
[390897455,1760203322022,-500.0,0.0003863,30]
[390897456,1760203322062,-500.0,0.0003863,30]
[390897457,1760203322099,-2005.21,0.0003863,30]
[390897458,1760203322138,-500.0,0.0003863,30]
[390897459,1760203322179,-500.0,0.0003863,30]
[390897460,1760203322217,-500.0,0.0003863,30]
[390897461,1760203322256,-500.0,0.0003863,30]
[390897462,1760203322300,-500.0,0.0003863,30]
[390897463,1760203322341,-561.08,0.0003863,30]
[390897464,1760203322378,-500.0,0.0003863,30]
[390897465,1760203322413,-500.0,0.0003863,30]
[390897466,1760203322451,-500.0,0.0003863,30]
[390897467,1760203322490,-500.0,0.0003863,30]
[390897468,1760203322529,-1458.59,0.0003863,30]
[390897469,1760203322566,-500.0,0.0003863,30]
[390897470,1760203322601,-500.0,0.0003863,30]
[390897471,1760203322640,-500.0,0.0003863,30]
[390897472,1760203322676,-500.0,0.0003863,30]
[390897473,1760203322713,-1961.36,0.0003863,30]
[390897474,1760203322748,-500.0,0.0003863,30]
[390897475,1760203322785,-758.66,0.0003863,30]
[390897476,1760203322821,-500.0,0.0003863,30]
[390897477,1760203322857,-500.0,0.0003863,30]
[390897478,1760203322891,-500.0,0.0003863,30]
[390897479,1760203322925,-500.0,0.0003863,30]
[390897480,1760203322963,-500.0,0.0003863,30]
[390897481,1760203323001,-500.0,0.0003863,30]
[390897482,1760203323040,-500.0,0.0003863,30]
[390897483,1760203323080,-906.11,0.0003863,30]
[390897484,1760203323120,-500.0,0.0003863,30]
[390897485,1760203323160,-500.0,0.0003863,30]
[390897486,1760203323201,-618.04,0.0003863,30]
[390897487,1760203323243,-500.0,0.0003863,30]
[390897488,1760203323282,-500.0,0.0003863,30]
[390897489,1760203323322,-500.0,0.0003863,30]
[390897490,1760203323366,-500.0,0.0003863,30]
[390897491,1760203323405,-500.0,0.0003863,30]
[390897492,1760203323444,-500.0,0.0003863,30]
[390897493,1760203323484,-500.0,0.0003863,30]
[390897494,1760203323525,-500.0,0.0003863,30]
[390897495,1760203323566,-500.0,0.0003863,30]
[390897496,1760203323606,-500.0,0.0003863,30]
[390897497,1760203323647,-611.61,0.0003863,30]
[390897498,1760203323686,-500.0,0.0003863,30]
[390897499,1760203323725,-500.0,0.0003863,30]
[390897500,1760203323764,-500.0,0.0003863,30]
[390897501,1760203323804,-500.0,0.0003863,30]
[390897502,1760203323844,-500.0,0.0003863,30]
[390897503,1760203323882,-500.0,0.0003863,30]
[390897504,1760203323923,-511.45,0.0003863,30]
[390897505,1760203323963,-507.10120578,0.0003863,30]
[390897506,1760203324002,-1522.3,0.0003863,30]
[390897507,1760203324042,-500.0,0.0003863,30]
[390897508,1760203324081,-500.0,0.0003863,30]
[390897509,1760203324224,-500.0,0.0003863,30]
[390897510,1760203324266,-500.0,0.0003863,30]
[390897511,1760203324308,-500.0,0.0003863,30]
[390897512,1760203324349,-1648.54,0.0003863,30]
[390897513,1760203324388,-631.78,0.0003863,30]
[390897514,1760203324426,-696.95,0.0003863,30]
[390897515,1760203324464,-500.0,0.0003863,30]
[390897516,1760203324501,-500.0,0.0003863,30]
[390897517,1760203324540,-500.0,0.0003863,30]
[390897518,1760203324576,-847.96,0.0003863,30]
[390897519,1760203324613,-500.0,0.0003863,30]
[390897520,1760203324650,-504.64,0.0003863,30]
[390897521,1760203324688,-500.0,0.0003863,30]
[390897522,1760203324726,-1149.54,0.0003863,30]
[390897523,1760203324765,-158.62986617,0.0003863,30]
[390897524,1760203324804,-500.0,0.0003863,30]
[390897525,1760203324842,-500.0,0.0003863,30]
[390897526,1760203324880,-500.0,0.0003863,30]
[390897527,1760203324922,-500.0,0.0003863,30]
[390897528,1760203324969,-500.0,0.0003863,30]
[390897529,1760203325012,-500.0,0.0003863,30]
[390897530,1760203325054,-500.0,0.0003863,30]
[390897531,1760203325095,-500.0,0.0003863,30]
[390897532,1760203325139,-500.0,0.0003863,30]
[390897533,1760203325181,-500.0,0.0003863,30]
[390897534,1760203325222,-399.96073114,0.0003863,30]
[390897535,1760203325262,-560.79,0.0003863,30]
[390897536,1760203325309,-551.19,0.0003863,30]
[390897537,1760203325349,-500.0,0.0003863,30]
[390897538,1760203325388,-500.0,0.0003863,30]
[390897539,1760203325427,-1226.06,0.0003863,30]
[390897540,1760203325466,-500.0,0.0003863,30]
[390897541,1760203325505,-747.48,0.0003863,30]
[390897542,1760203325545,-500.0,0.0003863,30]
[390897543,1760203325585,-500.0,0.0003863,30]
[390897544,1760203325623,-500.0,0.0003863,30]
[390897545,1760203325659,-639.88,0.0003863,30]
[390897546,1760203325697,-500.0,0.0003863,30]
[390897547,1760203325735,-434.87,0.0003863,30]
[390897548,1760203325774,-500.0,0.0003863,30]
[390897549,1760203325812,-500.0,0.0003863,30]
[390897550,1760203325851,-500.0,0.0003863,30]
[390897551,1760203325889,-500.0,0.0003863,30]
[390897552,1760203325925,-500.0,0.0003863,30]
[390897553,1760203325965,-500.0,0.0003863,30]
[390897554,1760203326004,-500.0,0.0003863,30]
[390897555,1760203326045,-500.0,0.0003863,30]
[390897556,1760203326085,-500.0,0.0003863,30]
[390897557,1760203326126,-500.0,0.0003863,30]
[390897558,1760203326167,-500.0,0.0003863,30]
[390897559,1760203326206,-500.0,0.0003863,30]
[390897560,1760203326246,-1247.73,0.0003863,30]
[390897561,1760203326285,-500.0,0.0003863,30]
[390897562,1760203326324,-500.0,0.0003863,30]
[390897563,1760203326364,-500.0,0.0003863,30]
[390897564,1760203326403,-500.0,0.0003863,30]
[390897565,1760203326441,-228.13641331,0.0003863,30]
[390897566,1760203326478,-500.0,0.0003863,30]
[390897567,1760203326517,-581.69317941,0.0003863,30]
[390897568,1760203326554,-540.93193527,0.0003863,30]
[390897569,1760203326593,-500.0,0.0003863,30]
[390897570,1760203326630,-500.0,0.0003863,30]
[390897571,1760203326666,-500.0,0.0003863,30]
[390897572,1760203326704,-508.41,0.0003863,30]
[390897573,1760203326743,-536.42217056,0.0003863,30]
[390897574,1760203326784,-500.0,0.0003863,30]
[390897575,1760203326822,-501.65117339,0.0003863,30]
[390897576,1760203326860,-957.9,0.0003863,30]
[390897577,1760203326900,-505.73383659,0.0003863,30]
[390897578,1760203326939,-500.0,0.0003863,30]
[390897579,1760203326977,-502.02909962,0.0003863,30]
[390897580,1760203327017,-500.0,0.0003863,30]
[390897581,1760203327056,-500.0,0.0003863,30]
[390897582,1760203327095,-500.0,0.0003863,30]
[390897583,1760203327137,-641.33,0.0003863,30]
[390897584,1760203327182,-500.0,0.0003863,30]
[390897585,1760203327226,-500.0,0.0003863,30]
[390897586,1760203327269,-500.0,0.0003863,30]
[390897587,1760203327313,-1070.56,0.0003863,30]
[390897588,1760203327353,-500.0,0.0003863,30]
[390897589,1760203327390,-500.0,0.0003863,30]
[390897590,1760203327431,-500.0,0.0003863,30]
[390897591,1760203327467,-500.0,0.0003863,30]
[390897592,1760203327504,-500.0,0.0003863,30]
[390897593,1760203327548,-500.0,0.0003863,30]
[390897594,1760203327584,-1264.37,0.0003863,30]
[390897595,1760203327620,-500.0,0.0003863,30]
[390897596,1760203327656,-500.0,0.0003863,30]
[390897597,1760203327691,-500.0,0.0003863,30]
[390897598,1760203327728,-500.0,0.0003863,30]
[390897599,1760203327766,-500.0,0.0003863,30]
[390897600,1760203327804,-500.0,0.0003863,30]
[390897601,1760203327840,-500.0,0.0003863,30]
[390897602,1760203327875,-833.62,0.0003863,30]
[390897603,1760203327910,-500.0,0.0003863,30]
[390897604,1760203327948,-500.0,0.0003863,30]
[390897605,1760203327987,-500.0,0.0003863,30]
[390897606,1760203328028,-500.0,0.0003863,30]
[390897607,1760203328068,-727.76,0.0003863,30]
[390897608,1760203328108,-500.0,0.0003863,30]
[390897609,1760203328146,-500.0,0.0003863,30]
[390897610,1760203328185,-500.0,0.0003863,30]
[390897611,1760203328226,-500.0,0.0003863,30]
[390897612,1760203328264,-500.0,0.0003863,30]
[390897613,1760203328511,-500.0,0.0003863,30]
[390897614,1760203328553,-306.44441618,0.0003863,30]
[390897615,1760203328592,-500.0,0.0003863,30]
[390897616,1760203328631,-500.0,0.0003863,30]
[390897617,1760203328669,-500.0,0.0003863,30]
[390897618,1760203328708,-500.0,0.0003863,30]
[390897619,1760203328749,-500.0,0.0003863,30]
[390897620,1760203328790,-901.82,0.0003863,30]
[390897621,1760203328831,-500.0,0.0003863,30]
[390897622,1760203328875,-500.0,0.0003863,30]
[390897623,1760203328917,-500.0,0.0003863,30]
[390897624,1760203328960,-733.56,0.0003863,30]
[390897625,1760203329004,-500.0,0.0003863,30]
[390897626,1760203329052,-500.0,0.0003863,30]
[390897627,1760203329095,-500.0,0.0003863,30]
[390897628,1760203329136,-828.5,0.0003863,30]
[390897629,1760203329178,-500.0,0.0003863,30]
[390897630,1760203329218,-500.0,0.0003863,30]
[390897631,1760203329260,-500.0,0.0003863,30]
[390897632,1760203329308,-880.08,0.0003863,30]
[390897633,1760203329351,-500.0,0.0003863,30]
[390897634,1760203329394,-500.0,0.0003863,30]
[390897635,1760203329434,-500.0,0.0003863,30]
[390897636,1760203329472,-500.0,0.0003863,30]
[390897637,1760203329512,-465.10524352,0.0003863,30]
[390897638,1760203329551,-500.0,0.0003863,30]
[390897639,1760203329590,-500.0,0.0003863,30]
[390897640,1760203329627,-500.0,0.0003863,30]
[390897641,1760203329664,-1226.04,0.0003863,30]
[390897642,1760203329702,-525.94,0.0003863,30]
[390897643,1760203329739,-500.0,0.0003863,30]
[390897644,1760203329780,-500.0,0.0003863,30]
[390897646,1760203329819,-500.0,0.0003863,30]
[390897647,1760203329858,-500.0,0.0003863,30]
[390897648,1760203329896,-500.0,0.0003863,30]
[390897649,1760203329936,-500.0,0.0003863,30]
[390897650,1760203329976,-556.42527916,0.0003863,30]
[390897651,1760203330020,-500.0,0.0003863,30]
[390897652,1760203330063,-500.0,0.0003863,30]
[390897653,1760203330103,-500.0,0.0003863,30]
[390897654,1760203330146,-500.0,0.0003863,30]
[390897655,1760203330188,-668.46,0.0003863,30]
[390897656,1760203330228,-1797.71,0.0003863,30]
[390897657,1760203330268,-500.0,0.0003863,30]
[390897658,1760203330314,-500.0,0.0003863,30]
[390897659,1760203330354,-500.0,0.0003863,30]
[390897660,1760203330393,-500.0,0.0003863,30]
[390897661,1760203330433,-500.0,0.0003863,30]
[390897662,1760203330470,-500.0,0.0003863,30]
[390897663,1760203330510,-500.0,0.0003863,30]
[390897664,1760203330560,-500.0,0.0003863,30]
[390897665,1760203330604,-500.0,0.0003863,30]
[390897666,1760203330645,-1445.17,0.0003863,30]
[390897667,1760203330686,-274.83277444,0.0003863,30]
[390897668,1760203330727,-500.0,0.0003863,30]
[390897669,1760203330770,-500.0,0.0003863,30]
[390897670,1760203330812,-500.0,0.0003863,30]
[390897671,1760203330853,-1240.19,0.0003863,30]
[390897672,1760203330893,-500.0,0.0003863,30]
[390897673,1760203330936,-500.0,0.0003863,30]
[390897674,1760203330976,-500.0,0.0003863,30]
[390897675,1760203331016,-1011.41,0.0003863,30]
[390897676,1760203331058,-500.0,0.0003863,30]
[390897677,1760203331098,-1227.78,0.0003863,30]
[390897678,1760203331138,-500.0,0.0003863,30]
[390897679,1760203331178,-721.14,0.0003863,30]
[390897680,1760203331221,-500.0,0.0003863,30]
[390897681,1760203331272,-523.02060084,0.0003863,30]
[390897682,1760203331318,-404.36913058,0.0003863,30]
[390897683,1760203331361,-500.0,0.0003863,30]
[390897684,1760203331403,-401.96159358,0.0003863,30]
[390897685,1760203331446,-500.0,0.0003863,30]
[390897686,1760203331487,-500.0,0.0003863,30]
[390897687,1760203331529,-899.96,0.0003863,30]
[390897688,1760203331569,-881.51,0.0003863,30]
[390897689,1760203331610,-173.72272419,0.0003863,30]
[390897690,1760203331652,-1494.95,0.0003863,30]
[390897691,1760203331693,-500.0,0.0003863,30]
[390897692,1760203331737,-950.76,0.0003863,30]
[390897693,1760203331779,-500.0,0.0003863,30]
[390897694,1760203331820,-500.0,0.0003863,30]
[390897695,1760203331861,-500.0,0.0003863,30]
[390897696,1760203331908,-1007.45,0.0003863,30]
[390897697,1760203331948,-500.0,0.0003863,30]
[390897698,1760203331989,-500.0,0.0003863,30]
[390897699,1760203332029,-400.0,0.0003863,30]
[390897700,1760203332070,-500.0,0.0003863,30]
[390897701,1760203332113,-737.95,0.0003863,30]
[390897702,1760203332154,-500.0,0.0003863,30]
[390897703,1760203332717,-1227.54,0.0003863,30]
[390897704,1760203332763,-500.0,0.0003863,30]
[390897705,1760203332817,-500.0,0.0003863,30]
[390897706,1760203332867,-953.52,0.0003863,30]
[390897707,1760203332912,-463.38492627,0.0003863,30]
[390897708,1760203332955,-500.0,0.0003863,30]
[390897709,1760203332996,-500.0,0.0003863,30]
[390897710,1760203333036,-500.0,0.0003863,30]
[390897711,1760203333075,-500.0,0.0003863,30]
[390897712,1760203333113,-500.0,0.0003863,30]
[390897713,1760203333150,-500.0,0.0003863,30]
[390897714,1760203333189,-500.0,0.0003863,30]
[390897715,1760203333229,-500.0,0.0003863,30]
[390897716,1760203333270,-1280.6,0.0003863,30]
[390897717,1760203333311,-500.0,0.0003863,30]
[390897718,1760203333352,-500.0,0.0003863,30]
[390897719,1760203333389,-500.0,0.0003863,30]
[390897720,1760203333425,-500.0,0.0003863,30]
[390897721,1760203333462,-500.0,0.0003863,30]
[390897722,1760203333502,-500.0,0.0003863,30]
[390897723,1760203333542,-500.0,0.0003863,30]
[390897724,1760203333580,-500.0,0.0003863,30]
[390897725,1760203333616,-582.76,0.0003863,30]
[390897726,1760203333652,-500.0,0.0003863,30]
[390897727,1760203333690,-500.0,0.0003863,30]
[390897728,1760203333728,-500.0,0.0003863,30]
[390897729,1760203333766,-698.08,0.0003863,30]
[390897730,1760203333806,-500.0,0.0003863,30]
[390897731,1760203333843,-500.0,0.0003863,30]
[390897732,1760203333882,-801.18,0.0003863,30]
[390897733,1760203333920,-402.09493348,0.0003863,30]
[390897734,1760203333958,-843.03,0.0003863,30]
[390897735,1760203333998,-500.0,0.0003863,30]
[390897736,1760203334037,-500.0,0.0003863,30]
[390897737,1760203334075,-553.35,0.0003863,30]
[390897738,1760203334113,-684.92,0.0003863,30]
[390897739,1760203334152,-500.0,0.0003863,30]
[390897740,1760203334193,-2442.87,0.0003863,30]
[390897741,1760203334234,-500.0,0.0003863,30]
[390897742,1760203334276,-500.0,0.0003863,30]
[390897743,1760203334317,-960.06,0.0003863,30]
[390897744,1760203334354,-500.0,0.0003863,30]
[390897745,1760203334391,-500.0,0.0003863,30]
[390897746,1760203334429,-404.84772939,0.0003863,30]
[390897747,1760203334465,-500.0,0.0003863,30]
[390897748,1760203334501,-863.6,0.0003863,30]
[390897749,1760203334537,-402.95812327,0.0003863,30]
[390897750,1760203334572,-1516.23,0.0003863,30]
[390897751,1760203334608,-2132.34,0.0003863,30]
[390897752,1760203334645,-500.0,0.0003863,30]
[390897753,1760203334683,-787.55,0.0003863,30]
[390897754,1760203334720,-500.0,0.0003863,30]
[390897755,1760203334756,-1370.89,0.0003863,30]
[390897756,1760203334792,-500.0,0.0003863,30]
[390897757,1760203334829,-500.0,0.0003863,30]
[390897758,1760203334865,-500.0,0.0003863,30]
[390897759,1760203334903,-1603.38,0.0003863,30]
[390897760,1760203334943,-500.0,0.0003863,30]
[390897761,1760203334982,-1695.04,0.0003863,30]
[390897762,1760203335022,-912.59,0.0003863,30]
[390897763,1760203335060,-1650.35,0.0003863,30]
[390897764,1760203335097,-500.0,0.0003863,30]
[390897765,1760203335136,-876.06,0.0003863,30]
[390897766,1760203335179,-500.0,0.0003863,30]
[390897767,1760203335219,-500.0,0.0003863,30]
[390897768,1760203335260,-500.0,0.0003863,30]
[390897769,1760203335307,-500.0,0.0003863,30]
[390897770,1760203335343,-536.14477654,0.0003863,30]
[390897771,1760203335380,-500.0,0.0003863,30]
[390897772,1760203335420,-2320.15,0.0003863,30]
[390897773,1760203335459,-500.0,0.0003863,30]
[390897774,1760203335596,-500.0,0.0003863,30]
[390897775,1760203335635,-500.0,0.0003863,30]
[390897776,1760203335675,-760.08,0.0003863,30]
[390897777,1760203335723,-592.6,0.0003863,30]
[390897778,1760203335767,-501.29141985,0.0003863,30]
[390897779,1760203335808,-500.0,0.0003863,30]
[390897780,1760203335848,-500.0,0.0003863,30]
[390897781,1760203335889,-500.0,0.0003863,30]
[390897782,1760203335928,-500.0,0.0003863,30]
[390897783,1760203335972,-500.0,0.0003863,30]
[390897784,1760203336014,-500.0,0.0003863,30]
[390897785,1760203336058,-1033.86,0.0003863,30]
[390897786,1760203336101,-500.0,0.0003863,30]
[390897787,1760203336142,-500.0,0.0003863,30]
[390897788,1760203336183,-215.30242878,0.0003863,30]
[390897789,1760203336223,-500.0,0.0003863,30]
[390897790,1760203336262,-500.0,0.0003863,30]
[390897791,1760203336305,-500.0,0.0003863,30]
[390897792,1760203336350,-500.0,0.0003863,30]
[390897793,1760203336388,-500.0,0.0003863,30]
[390897794,1760203336425,-500.0,0.0003863,30]
[390897795,1760203336463,-500.0,0.0003863,30]
[390897796,1760203336502,-842.6,0.0003863,30]
[390897797,1760203336539,-500.0,0.0003863,30]
[390897798,1760203336577,-500.0,0.0003863,30]
[390897799,1760203336612,-500.0,0.0003863,30]
[390897800,1760203336648,-500.0,0.0003863,30]
[390897801,1760203336684,-500.0,0.0003863,30]
[390897802,1760203336722,-2009.13,0.0003863,30]
[390897803,1760203336762,-641.67,0.0003863,30]
[390897804,1760203336803,-500.0,0.0003863,30]
[390897805,1760203336842,-500.0,0.0003863,30]
[390897806,1760203336879,-500.0,0.0003863,30]
[390897807,1760203336916,-500.0,0.0003863,30]
[390897808,1760203336955,-500.0,0.0003863,30]
[390897809,1760203336992,-2271.06,0.0003863,30]
[390897810,1760203337031,-511.13,0.0003863,30]
[390897811,1760203337069,-500.0,0.0003863,30]
[390897812,1760203337109,-500.0,0.0003863,30]
[390897813,1760203337147,-500.0,0.0003863,30]
[390897814,1760203337185,-1411.05,0.0003863,30]
[390897815,1760203337223,-537.03,0.0003863,30]
[390897816,1760203337259,-500.0,0.0003863,30]
[390897817,1760203337301,-602.13,0.0003863,30]
[390897818,1760203337339,-500.0,0.0003863,30]
[390897819,1760203337375,-1461.82,0.0003863,30]
[390897820,1760203337409,-529.63,0.0003863,30]
[390897821,1760203337442,-500.0,0.0003863,30]
[390897822,1760203337477,-1413.26,0.0003863,30]
[390897823,1760203337511,-500.0,0.0003863,30]
[390897824,1760203337546,-500.0,0.0003863,30]
[390897825,1760203337582,-2314.39,0.0003863,30]
[390897826,1760203337617,-1258.97,0.0003863,30]
[390897827,1760203337652,-500.0,0.0003863,30]